[Event "*** Titled Tuesday Blitz"]
[Site "Chess.com"]
[Date "2021.02.02"]
[Round "7"]
[White "MasterMK73"]
[Black "Etud-otradnoe"]
[Result "1/2-1/2"]
[WhiteElo "2223"]
[BlackElo "2367"]
[TimeControl "180+1"]
[EndTime "11:21:22 PST"]
[Termination "Game drawn by repetition"]

1. e4 {[%clk 0:03:00.9]} 1... e6 {[%clk 0:02:59.5]} 2. d4 {[%clk 0:03:00]} 2...
d5 {[%clk 0:02:58.6]} 3. Nd2 {[%clk 0:02:59.6]} 3... Nf6 {[%clk 0:02:57.7]} 4.
e5 {[%clk 0:02:58.8]} 4... Nfd7 {[%clk 0:02:57.4]} 5. c3 {[%clk 0:02:58.7]} 5...
c5 {[%clk 0:02:57.1]} 6. f4 {[%clk 0:02:58.8]} 6... Nc6 {[%clk 0:02:47.5]} 7.
Ndf3 {[%clk 0:02:51.2]} 7... Qb6 {[%clk 0:02:42.1]} 8. g3 {[%clk 0:02:47.3]}
8... cxd4 {[%clk 0:02:42.1]} 9. cxd4 {[%clk 0:02:47.1]} 9... Bb4+ {[%clk
0:02:41.8]} 10. Kf2 {[%clk 0:02:46.9]} 10... g5 {[%clk 0:02:36.2]} 11. h3 {[%clk
0:02:41.9]} 11... f6 {[%clk 0:02:09.1]} 12. Be3 {[%clk 0:02:40]} 12... gxf4
{[%clk 0:02:00.1]} 13. gxf4 {[%clk 0:02:38.4]} 13... fxe5 {[%clk 0:01:39.1]} 14.
fxe5 {[%clk 0:02:36.5]} 14... Rf8 {[%clk 0:01:34.2]} 15. Kg2 {[%clk 0:01:51.3]}
15... Ne7 {[%clk 0:01:33.6]} 16. Bd3 {[%clk 0:01:38.9]} 16... Nf5 {[%clk
0:01:31.3]} 17. Bf2 {[%clk 0:01:26.8]} 17... Qd8 {[%clk 0:00:48.7]} 18. Kh2
{[%clk 0:01:13.3]} 18... Qe7 {[%clk 0:00:46.4]} 19. Qe2 {[%clk 0:00:56.3]} 19...
Ba5 {[%clk 0:00:44.9]} 20. Rf1 {[%clk 0:00:54.1]} 20... Bb6 {[%clk 0:00:44.5]}
21. Qd2 {[%clk 0:00:42.6]} 21... Rf7 {[%clk 0:00:38.1]} 22. Ne2 {[%clk
0:00:40.1]} 22... Nf8 {[%clk 0:00:37.1]} 23. Nf4 {[%clk 0:00:36.2]} 23... Ng6
{[%clk 0:00:34.6]} 24. Nxg6 {[%clk 0:00:35.8]} 24... hxg6 {[%clk 0:00:34.1]} 25.
Rhg1 {[%clk 0:00:36.2]} 25... Bd7 {[%clk 0:00:30.5]} 26. Ng5 {[%clk 0:00:33.9]}
26... Rg7 {[%clk 0:00:20.5]} 27. Rc1 {[%clk 0:00:21.4]} 27... Nxd4 {[%clk
0:00:18.4]} 28. Bxd4 {[%clk 0:00:18.3]} 28... Bxd4 {[%clk 0:00:18.4]} 29. Nf3
{[%clk 0:00:18.9]} 29... Bxg1+ {[%clk 0:00:17.3]} 30. Kxg1 {[%clk 0:00:14.4]}
30... Bc6 {[%clk 0:00:12.6]} 31. Nd4 {[%clk 0:00:11.8]} 31... Rc8 {[%clk
0:00:11.3]} 32. Qg2 {[%clk 0:00:11.4]} 32... g5 {[%clk 0:00:10.9]} 33. Nxc6
{[%clk 0:00:10.7]} 33... Rxc6 {[%clk 0:00:10.2]} 34. Bb5 {[%clk 0:00:10.2]}
34... Qc7 {[%clk 0:00:10]} 35. Bxc6+ {[%clk 0:00:10.1]} 35... bxc6 {[%clk
0:00:10]} 36. Qc2 {[%clk 0:00:10.3]} 36... Qxe5 {[%clk 0:00:08.6]} 37. Qxc6+
{[%clk 0:00:10.1]} 37... Rd7 {[%clk 0:00:08.5]} 38. Qc8+ {[%clk 0:00:10]} 38...
Ke7 {[%clk 0:00:08.6]} 39. Qc5+ {[%clk 0:00:10.2]} 39... Kf6 {[%clk 0:00:06]}
40. Rf1+ {[%clk 0:00:09.3]} 40... Kg6 {[%clk 0:00:06]} 41. Qf2 {[%clk
0:00:09.4]} 41... Qf4 {[%clk 0:00:03.9]} 42. Qg2 {[%clk 0:00:08.9]} 42... Qe3+
{[%clk 0:00:03.6]} 43. Kh1 {[%clk 0:00:08.8]} 43... Rh7 {[%clk 0:00:04.2]} 44.
Qc2+ {[%clk 0:00:08.9]} 44... Qe4+ {[%clk 0:00:03.6]} 45. Qxe4+ {[%clk
0:00:08.5]} 45... dxe4 {[%clk 0:00:03.7]} 46. Kg2 {[%clk 0:00:09.1]} 46... Rh4
{[%clk 0:00:03.1]} 47. Kg3 {[%clk 0:00:08.9]} 47... e5 {[%clk 0:00:03.8]} 48.
Rc1 {[%clk 0:00:08.6]} 48... Rf4 {[%clk 0:00:04.4]} 49. Rc6+ {[%clk 0:00:08.5]}
49... Kf5 {[%clk 0:00:04.2]} 50. Rc7 {[%clk 0:00:09.2]} 50... Rf3+ {[%clk
0:00:04.4]} 51. Kg2 {[%clk 0:00:09.7]} 51... Rd3 {[%clk 0:00:04]} 52. Rxa7
{[%clk 0:00:09.5]} 52... e3 {[%clk 0:00:02.9]} 53. Kf3 {[%clk 0:00:09.1]} 53...
e4+ {[%clk 0:00:02.9]} 54. Ke2 {[%clk 0:00:09.5]} 54... Kf4 {[%clk 0:00:02.4]}
55. Rf7+ {[%clk 0:00:08.6]} 55... Kg3 {[%clk 0:00:02.6]} 56. Rg7 {[%clk
0:00:08.5]} 56... Kh4 {[%clk 0:00:02.5]} 57. Rh7+ {[%clk 0:00:08.1]} 57... Kg3
{[%clk 0:00:02.8]} 58. Rg7 {[%clk 0:00:08.6]} 58... Kf4 {[%clk 0:00:03.1]} 59.
a4 {[%clk 0:00:07.8]} 59... Rb3 {[%clk 0:00:02.6]} 60. Rf7+ {[%clk 0:00:07.4]}
60... Kg3 {[%clk 0:00:02.8]} 61. Rg7 {[%clk 0:00:07.6]} 61... Kxh3 {[%clk
0:00:02.9]} 62. Rxg5 {[%clk 0:00:07.6]} 62... Kh4 {[%clk 0:00:02.5]} 63. Rg8
{[%clk 0:00:07.7]} 63... Rxb2+ {[%clk 0:00:02.7]} 64. Kxe3 {[%clk 0:00:08]}
64... Rb4 {[%clk 0:00:02.8]} 65. a5 {[%clk 0:00:07.4]} 65... Ra4 {[%clk
0:00:02.6]} 66. Ra8 {[%clk 0:00:07.5]} 66... Kg5 {[%clk 0:00:02.7]} 67. a6
{[%clk 0:00:07.8]} 67... Kf6 {[%clk 0:00:02.8]} 68. a7 {[%clk 0:00:08.1]} 68...
Kg7 {[%clk 0:00:03]} 69. Kf4 {[%clk 0:00:06.9]} 69... Kh7 {[%clk 0:00:03.2]} 70.
Ke3 {[%clk 0:00:06]} 70... Kg7 {[%clk 0:00:03.3]} 71. Kf4 {[%clk 0:00:06.3]}
71... Kh7 {[%clk 0:00:03.5]} 72. Ke3 {[%clk 0:00:06.9]} 72... Kg7 {[%clk
0:00:03.7]} 1/2-1/2

[Event "*** Titled Tuesday Blitz"]
[Site "Chess.com"]
[Date "2021.02.02"]
[Round "7"]
[White "NMJeevanK"]
[Black "Deepweb2020"]
[Result "1-0"]
[WhiteElo "2520"]
[BlackElo "2384"]
[TimeControl "180+1"]
[EndTime "11:21:23 PST"]
[Termination "NMJeevanK won by checkmate"]

1. e4 {[%clk 0:03:00.9]} 1... e5 {[%clk 0:02:59.9]} 2. Nf3 {[%clk 0:03:00.3]}
2... Nc6 {[%clk 0:02:59.7]} 3. Bb5 {[%clk 0:03:00.9]} 3... a6 {[%clk 0:02:59.3]}
4. Ba4 {[%clk 0:03:00.4]} 4... Nf6 {[%clk 0:02:59.5]} 5. O-O {[%clk 0:03:01.1]}
5... b5 {[%clk 0:03:00.2]} 6. Bb3 {[%clk 0:03:01.2]} 6... Bc5 {[%clk 0:03:01]}
7. c3 {[%clk 0:02:59.3]} 7... d6 {[%clk 0:03:01.3]} 8. d4 {[%clk 0:02:59.2]}
8... Bb6 {[%clk 0:03:01.6]} 9. Re1 {[%clk 0:02:58.1]} 9... h6 {[%clk 0:02:57.9]}
10. h3 {[%clk 0:02:57.7]} 10... O-O {[%clk 0:02:57.5]} 11. Bc2 {[%clk
0:02:54.1]} 11... Re8 {[%clk 0:02:56]} 12. d5 {[%clk 0:02:54.1]} 12... Ne7
{[%clk 0:02:55.4]} 13. Nbd2 {[%clk 0:02:55]} 13... Ng6 {[%clk 0:02:53.6]} 14.
Nf1 {[%clk 0:02:55.1]} 14... Nh5 {[%clk 0:02:52.9]} 15. Be3 {[%clk 0:02:39.2]}
15... Ngf4 {[%clk 0:02:50.1]} 16. Bxb6 {[%clk 0:02:36.5]} 16... cxb6 {[%clk
0:02:48.6]} 17. Ng3 {[%clk 0:02:37.1]} 17... Qf6 {[%clk 0:02:44.8]} 18. Re3
{[%clk 0:02:29.4]} 18... g5 {[%clk 0:01:57.8]} 19. Nxh5 {[%clk 0:02:25.3]} 19...
Nxh5 {[%clk 0:01:57.7]} 20. Nxe5 {[%clk 0:02:24]} 20... Nf4 {[%clk 0:01:50.3]}
21. Ng4 {[%clk 0:02:21.8]} 21... Qg7 {[%clk 0:01:39.7]} 22. Qd4 {[%clk 0:02:05]}
22... Bxg4 {[%clk 0:01:25.7]} 23. Qxg7+ {[%clk 0:01:57]} 23... Kxg7 {[%clk
0:01:26.6]} 24. hxg4 {[%clk 0:01:57.8]} 24... Kf6 {[%clk 0:01:16.3]} 25. g3
{[%clk 0:01:50.2]} 25... Ng6 {[%clk 0:01:12.5]} 26. Rf1 {[%clk 0:01:47.6]} 26...
Ne5 {[%clk 0:01:10.7]} 27. Bd1 {[%clk 0:01:36.5]} 27... Nc4 {[%clk 0:00:56.6]}
28. Re2 {[%clk 0:01:32.3]} 28... Re7 {[%clk 0:00:56.1]} 29. f4 {[%clk
0:01:29.9]} 29... Rae8 {[%clk 0:00:54]} 30. b3 {[%clk 0:01:08.4]} 30... Na5
{[%clk 0:00:51.3]} 31. fxg5+ {[%clk 0:00:46.9]} 31... Kxg5 {[%clk 0:00:50.8]}
32. Rf5+ {[%clk 0:00:47.4]} 32... Kg6 {[%clk 0:00:50.1]} 33. Bc2 {[%clk
0:00:43.6]} 33... Kg7 {[%clk 0:00:37.6]} 34. Ref2 {[%clk 0:00:42.4]} 34... Nb7
{[%clk 0:00:33.7]} 35. g5 {[%clk 0:00:41.8]} 35... h5 {[%clk 0:00:29.4]} 36. Rf6
{[%clk 0:00:37.5]} 36... Rf8 {[%clk 0:00:21.3]} 37. b4 {[%clk 0:00:32]} 37...
Re5 {[%clk 0:00:21.3]} 38. g6 {[%clk 0:00:30.7]} 38... Re7 {[%clk 0:00:16.8]}
39. R6f5 {[%clk 0:00:25.4]} 39... Kxg6 {[%clk 0:00:13.4]} 40. e5 {[%clk
0:00:25.2]} 40... Kh6 {[%clk 0:00:12.6]} 41. Rh2 {[%clk 0:00:18.5]} 41... Rxe5
{[%clk 0:00:11.2]} 42. Rhxh5+ {[%clk 0:00:17.2]} 42... Kg7 {[%clk 0:00:11.1]}
43. Rhg5+ {[%clk 0:00:12.3]} 43... Kh6 {[%clk 0:00:10.1]} 44. Rxe5 {[%clk
0:00:11.5]} 44... dxe5 {[%clk 0:00:09.8]} 45. Rxe5 {[%clk 0:00:12.4]} 45... Rc8
{[%clk 0:00:08.8]} 46. Re3 {[%clk 0:00:08.1]} 46... Nd6 {[%clk 0:00:07.6]} 47.
Kg2 {[%clk 0:00:06.4]} 47... Kg7 {[%clk 0:00:07.1]} 48. g4 {[%clk 0:00:06.4]}
48... Kf6 {[%clk 0:00:07]} 49. Kg3 {[%clk 0:00:06.7]} 49... Nc4 {[%clk
0:00:07.4]} 50. Rf3+ {[%clk 0:00:06.4]} 50... Ke7 {[%clk 0:00:07.8]} 51. Bf5
{[%clk 0:00:06.9]} 51... Rd8 {[%clk 0:00:06.9]} 52. Rd3 {[%clk 0:00:06.9]} 52...
Kd6 {[%clk 0:00:06.9]} 53. Kf4 {[%clk 0:00:06.4]} 53... Re8 {[%clk 0:00:06.6]}
54. Rh3 {[%clk 0:00:06.3]} 54... Kxd5 {[%clk 0:00:03.1]} 55. Rh7 {[%clk
0:00:06.9]} 55... Re2 {[%clk 0:00:03]} 56. Rxf7 {[%clk 0:00:06.1]} 56... Rf2+
{[%clk 0:00:03.1]} 57. Kg5 {[%clk 0:00:06]} 57... Rxa2 {[%clk 0:00:03.2]} 58.
Kf6 {[%clk 0:00:04.1]} 58... Ra1 {[%clk 0:00:01.8]} 59. g5 {[%clk 0:00:03.7]}
59... Rg1 {[%clk 0:00:01.3]} 60. g6 {[%clk 0:00:03.2]} 60... Nd6 {[%clk
0:00:02.2]} 61. Rd7 {[%clk 0:00:03.1]} 61... Kc6 {[%clk 0:00:01.8]} 62. Re7
{[%clk 0:00:02.7]} 62... Rf1 {[%clk 0:00:02.1]} 63. Re5 {[%clk 0:00:03.3]} 63...
Rg1 {[%clk 0:00:02]} 64. g7 {[%clk 0:00:03.6]} 64... Nxf5 {[%clk 0:00:02.4]} 65.
Rxf5 {[%clk 0:00:03.8]} 65... a5 {[%clk 0:00:03.3]} 66. Kf7 {[%clk 0:00:03.9]}
66... Rf1 {[%clk 0:00:04.2]} 67. Rxf1 {[%clk 0:00:03.6]} 67... a4 {[%clk
0:00:04]} 68. Rf6+ {[%clk 0:00:04.5]} 68... Kd5 {[%clk 0:00:04.6]} 69. g8=Q
{[%clk 0:00:04.6]} 69... Kc4 {[%clk 0:00:05.5]} 70. Qg5 {[%clk 0:00:05.1]} 70...
a3 {[%clk 0:00:05.5]} 71. Rf3 {[%clk 0:00:06]} 71... a2 {[%clk 0:00:04.6]} 72.
Qf4+ {[%clk 0:00:06.9]} 72... Kb3 {[%clk 0:00:04.5]} 73. c4+ {[%clk 0:00:07.6]}
73... Kb2 {[%clk 0:00:04]} 74. Rf1 {[%clk 0:00:08.2]} 74... a1=Q {[%clk
0:00:03.9]} 75. Qd2+ {[%clk 0:00:08.7]} 75... Kb3 {[%clk 0:00:03.9]} 76. Rxa1
{[%clk 0:00:09.6]} 76... Kxc4 {[%clk 0:00:04.1]} 77. Rc1+ {[%clk 0:00:10.2]}
77... Kb3 {[%clk 0:00:04.2]} 78. Qc2+ {[%clk 0:00:10.8]} 78... Ka3 {[%clk
0:00:04.3]} 79. Ra1+ {[%clk 0:00:10.9]} 79... Kxb4 {[%clk 0:00:04.9]} 80. Rb1+
{[%clk 0:00:11.6]} 80... Ka3 {[%clk 0:00:04.5]} 81. Qb2+ {[%clk 0:00:11.9]}
81... Ka4 {[%clk 0:00:03]} 82. Qb4# {[%clk 0:00:12.8]} 1-0

[Event "*** Titled Tuesday Blitz"]
[Site "Chess.com"]
[Date "2021.02.02"]
[Round "7"]
[White "Szparu"]
[Black "LisikValera"]
[Result "1-0"]
[WhiteElo "2661"]
[BlackElo "2483"]
[TimeControl "180+1"]
[EndTime "11:21:53 PST"]
[Termination "Szparu won by resignation"]

1. e4 {[%clk 0:02:59.6]} 1... e6 {[%clk 0:03:00]} 2. d4 {[%clk 0:02:59.7]} 2...
d5 {[%clk 0:02:59.8]} 3. Nd2 {[%clk 0:02:59.3]} 3... Nc6 {[%clk 0:02:58.8]} 4.
Ngf3 {[%clk 0:02:59]} 4... Nf6 {[%clk 0:02:58.8]} 5. Bd3 {[%clk 0:02:45.2]} 5...
Nb4 {[%clk 0:02:56.3]} 6. O-O {[%clk 0:02:39.6]} 6... Nxd3 {[%clk 0:02:55.4]} 7.
cxd3 {[%clk 0:02:40.5]} 7... Be7 {[%clk 0:02:55.8]} 8. Re1 {[%clk 0:02:39.1]}
8... O-O {[%clk 0:02:55.7]} 9. Nf1 {[%clk 0:02:39.1]} 9... b6 {[%clk 0:02:55.2]}
10. Ng3 {[%clk 0:02:39.1]} 10... Bb7 {[%clk 0:02:48.4]} 11. Bf4 {[%clk
0:02:36.9]} 11... Rc8 {[%clk 0:02:47]} 12. e5 {[%clk 0:02:29.1]} 12... Ne8
{[%clk 0:02:46]} 13. Nh5 {[%clk 0:02:29.4]} 13... c5 {[%clk 0:02:41.3]} 14. Re3
{[%clk 0:02:21.2]} 14... g6 {[%clk 0:02:38.3]} 15. Ng3 {[%clk 0:02:13.8]} 15...
Ng7 {[%clk 0:02:33.3]} 16. Bh6 {[%clk 0:02:09.1]} 16... Re8 {[%clk 0:02:22.8]}
17. Qa4 {[%clk 0:01:33.3]} 17... Bc6 {[%clk 0:02:15.5]} 18. Qd1 {[%clk
0:01:21.9]} 18... Bb5 {[%clk 0:02:08.3]} 19. a4 {[%clk 0:01:20.2]} 19... Ba6
{[%clk 0:02:07.8]} 20. dxc5 {[%clk 0:01:17.7]} 20... bxc5 {[%clk 0:02:05.9]} 21.
d4 {[%clk 0:01:18.6]} 21... cxd4 {[%clk 0:02:02.1]} 22. Nxd4 {[%clk 0:01:18.3]}
22... Qb6 {[%clk 0:01:59.6]} 23. Qg4 {[%clk 0:00:59.4]} 23... Rc4 {[%clk
0:01:49.3]} 24. Rd1 {[%clk 0:00:47.3]} 24... Nf5 {[%clk 0:01:49.2]} 25. Ngxf5
{[%clk 0:00:42]} 25... exf5 {[%clk 0:01:50.1]} 26. Qf4 {[%clk 0:00:38.4]} 26...
Bc5 {[%clk 0:01:49.3]} 27. Red3 {[%clk 0:00:30.5]} 27... Qxb2 {[%clk 0:01:36.5]}
28. e6 {[%clk 0:00:28.8]} 28... Rxd4 {[%clk 0:01:29.5]} 29. Rxd4 {[%clk
0:00:27.3]} 29... Bxd4 {[%clk 0:01:24.1]} 30. Rxd4 {[%clk 0:00:20.4]} 30... Qb1+
{[%clk 0:01:23.2]} 31. Qc1 {[%clk 0:00:19.9]} 31... Qxc1+ {[%clk 0:01:23.5]} 32.
Bxc1 {[%clk 0:00:20.8]} 32... fxe6 {[%clk 0:01:23.8]} 33. f4 {[%clk 0:00:20.1]}
33... Rb8 {[%clk 0:01:20.6]} 34. Ba3 {[%clk 0:00:18.7]} 34... Bc4 {[%clk
0:01:12.8]} 35. Bc5 {[%clk 0:00:13.4]} 35... a6 {[%clk 0:01:12.2]} 36. a5 {[%clk
0:00:13.3]} 36... Rb2 {[%clk 0:01:11.7]} 37. Rd1 {[%clk 0:00:10.8]} 37... Kf7
{[%clk 0:01:10.9]} 38. Re1 {[%clk 0:00:11.1]} 38... Bd3 {[%clk 0:01:09.4]} 39.
Bf2 {[%clk 0:00:06.1]} 39... Ke8 {[%clk 0:01:06.5]} 40. Rc1 {[%clk 0:00:06.2]}
40... Kd7 {[%clk 0:01:06.7]} 41. Bb6 {[%clk 0:00:06.4]} 41... Bc4 {[%clk
0:01:06.3]} 42. h3 {[%clk 0:00:06.3]} 42... h6 {[%clk 0:01:05.4]} 43. Rc3 {[%clk
0:00:06.2]} 43... Ke7 {[%clk 0:00:59.3]} 44. Rg3 {[%clk 0:00:05.9]} 44... Kf7
{[%clk 0:00:59.6]} 45. h4 {[%clk 0:00:06.2]} 45... Rd2 {[%clk 0:00:52.9]} 46.
Rc3 {[%clk 0:00:03.6]} 46... g5 {[%clk 0:00:49]} 47. hxg5 {[%clk 0:00:03.6]}
47... hxg5 {[%clk 0:00:49.9]} 48. g3 {[%clk 0:00:02.9]} 48... Kg6 {[%clk
0:00:50.8]} 49. Be3 {[%clk 0:00:01.9]} 49... gxf4 {[%clk 0:00:49.3]} 50. Bxd2
{[%clk 0:00:02]} 50... fxg3 {[%clk 0:00:49.7]} 51. Rxg3+ {[%clk 0:00:02.7]}
51... Kf6 {[%clk 0:00:49.5]} 52. Rh3 {[%clk 0:00:03.3]} 52... e5 {[%clk
0:00:49.9]} 53. Rh6+ {[%clk 0:00:04.1]} 53... Kf7 {[%clk 0:00:49.6]} 54. Rd6
{[%clk 0:00:04.3]} 54... f4 {[%clk 0:00:49.4]} 55. Bb4 {[%clk 0:00:04.6]} 55...
e4 {[%clk 0:00:48.8]} 56. Bc3 {[%clk 0:00:04.1]} 56... Ke7 {[%clk 0:00:48.3]}
57. Rh6 {[%clk 0:00:04]} 57... Kd7 {[%clk 0:00:47.7]} 58. Bd4 {[%clk 0:00:04.6]}
58... Ke7 {[%clk 0:00:44.6]} 59. Rf6 {[%clk 0:00:04.3]} 59... f3 {[%clk
0:00:44]} 60. Kf2 {[%clk 0:00:04.7]} 60... Kd7 {[%clk 0:00:44.1]} 61. Ke3 {[%clk
0:00:05.3]} 61... Ke7 {[%clk 0:00:45]} 62. Rb6 {[%clk 0:00:05.3]} 62... Kd7
{[%clk 0:00:44.2]} 63. Be5 {[%clk 0:00:05.8]} 63... Ke7 {[%clk 0:00:44.4]} 64.
Bg3 {[%clk 0:00:06.1]} 64... Kd7 {[%clk 0:00:44.7]} 65. Kd4 {[%clk 0:00:06.6]}
65... Ke7 {[%clk 0:00:45.1]} 66. Rb7+ {[%clk 0:00:05.9]} 66... Ke6 {[%clk
0:00:44.7]} 67. Rh7 {[%clk 0:00:05.4]} 67... Kf5 {[%clk 0:00:44.7]} 68. Rh4
{[%clk 0:00:05.9]} 68... Kg5 {[%clk 0:00:44.5]} 69. Bf2 {[%clk 0:00:05.3]} 69...
Kf5 {[%clk 0:00:43.8]} 70. Ke3 {[%clk 0:00:05.2]} 70... Ke5 {[%clk 0:00:43.2]}
71. Rh5+ {[%clk 0:00:05.4]} 71... Kd6 {[%clk 0:00:43.5]} 72. Kd4 {[%clk
0:00:05.2]} 72... Ke6 {[%clk 0:00:43.7]} 73. Be3 {[%clk 0:00:05.4]} 73... Kf6
{[%clk 0:00:43.4]} 74. Rh6+ {[%clk 0:00:03.5]} 74... Kf5 {[%clk 0:00:43.3]} 75.
Rh4 {[%clk 0:00:03.6]} 75... Kf6 {[%clk 0:00:41.6]} 76. Rf4+ {[%clk 0:00:04]}
76... Ke6 {[%clk 0:00:40.8]} 77. Rg4 {[%clk 0:00:03.8]} 77... Kf6 {[%clk
0:00:41]} 78. Rg1 {[%clk 0:00:03.8]} 78... Kf5 {[%clk 0:00:40.6]} 79. Rg5+
{[%clk 0:00:03.4]} 79... Kf6 {[%clk 0:00:40.6]} 80. Rg8 {[%clk 0:00:03.6]} 80...
Kf7 {[%clk 0:00:40.3]} 81. Rc8 {[%clk 0:00:03.7]} 81... Kf6 {[%clk 0:00:40.3]}
82. Rf8+ {[%clk 0:00:03.6]} 82... Kg6 {[%clk 0:00:37.3]} 83. Ke5 {[%clk
0:00:03.9]} 83... Kh5 {[%clk 0:00:36.7]} 84. Rf7 {[%clk 0:00:03.2]} 84... Kg4
{[%clk 0:00:36.6]} 85. Rg7+ {[%clk 0:00:03.3]} 85... Kh3 {[%clk 0:00:36.8]} 86.
Kf4 {[%clk 0:00:04]} 86... Be2 {[%clk 0:00:32.2]} 87. Bf2 {[%clk 0:00:04.3]}
87... Kh2 {[%clk 0:00:30]} 88. Rg5 {[%clk 0:00:04.3]} 88... Kh3 {[%clk
0:00:29.1]} 89. Rxd5 {[%clk 0:00:04.3]} 89... Kg2 {[%clk 0:00:28.9]} 90. Be3
{[%clk 0:00:03.8]} 90... Bd3 {[%clk 0:00:28.5]} 91. Rg5+ {[%clk 0:00:03.9]}
91... Kf1 {[%clk 0:00:29.4]} 92. Rh5 {[%clk 0:00:03.8]} 92... Ke2 {[%clk
0:00:29.5]} 93. Rh2+ {[%clk 0:00:04]} 93... Ke1 {[%clk 0:00:29.9]} 94. Rf2
{[%clk 0:00:04.4]} 94... Kd1 {[%clk 0:00:29.8]} 95. Ke5 {[%clk 0:00:04.8]} 95...
Ke1 {[%clk 0:00:28.7]} 96. Kd4 {[%clk 0:00:05.1]} 96... Kd1 {[%clk 0:00:28.5]}
97. Kc3 {[%clk 0:00:03.9]} 97... Ke1 {[%clk 0:00:28.8]} 98. Rh2 {[%clk
0:00:03.9]} 98... Kf1 {[%clk 0:00:28]} 99. Rf2+ {[%clk 0:00:03.4]} 99... Ke1
{[%clk 0:00:27.4]} 100. Rb2 {[%clk 0:00:04]} 100... Kf1 {[%clk 0:00:26.3]} 101.
Kd4 {[%clk 0:00:04.5]} 101... Ke1 {[%clk 0:00:26.4]} 102. Bf2+ {[%clk 0:00:05]}
102... Kf1 {[%clk 0:00:26.3]} 103. Ke3 {[%clk 0:00:05.7]} 103... Be2 {[%clk
0:00:22.3]} 104. Rb6 {[%clk 0:00:05.7]} 104... Bd3 {[%clk 0:00:23.2]} 105. Rg6
{[%clk 0:00:05.7]} 1-0